fUST/lending_fUST_20251214
["ID","MTS","AMOUNT","RATE_DAILY","PERIOD"]
[398449288,1765665042552,-600.0,0.00015688,2]
[398449289,1765665042561,-319.05239199,0.00015753,2]
[398449290,1765665042570,-274.72139346,0.00015754,2]
[398449291,1765665042579,-257.29090219,0.00015754,2]
[398449292,1765665042588,-154.9841517,0.00015775,2]
[398449293,1765665042597,-500.0,0.00015792,2]
[398449294,1765665042606,-537.0,0.00015792,2]
[398449295,1765665042615,-500.0,0.00015792,2]
[398449296,1765665042624,-500.0,0.00015792,2]
[398449297,1765665042634,-467.0,0.00015792,2]
[398449298,1765665042643,-515.0,0.00015792,2]
[398449299,1765665042652,-384.63922505,0.00015792,2]
[398449300,1765665042661,-500.0,0.00015792,2]
[398449301,1765665042671,-500.0,0.00015792,2]
[398449302,1765665042680,-500.0,0.00015792,2]
[398449306,1765665042880,-500.0,0.00015792,2]
[398449307,1765665042890,-1680.0,0.0001584,2]
[398449308,1765665042900,-500.0,0.00015929,2]
[398449309,1765665042910,-537.0,0.00015929,2]
[398449310,1765665042919,-500.0,0.00015929,2]
[398449311,1765665042928,-298.60011737,0.00015929,2]
[398449312,1765665042938,-467.0,0.00015929,2]
[398449313,1765665042947,-515.0,0.00015929,2]
[398449314,1765665042956,-500.0,0.00015929,2]
[398449315,1765665042966,-500.0,0.00015929,2]
[398449316,1765665042975,-500.0,0.00015929,2]
[398449317,1765665042985,-640.24385345,0.00016035,2]
[398449318,1765665042994,-500.0,0.00016066,2]
[398449319,1765665043003,-537.0,0.00016066,2]
[398449320,1765665043017,-500.0,0.00016066,2]
[398449321,1765665043027,-467.0,0.00016066,2]
[398449322,1765665043037,-515.0,0.00016066,2]
[398449323,1765665043046,-500.0,0.00016066,2]
[398449324,1765665043058,-500.0,0.00016066,2]
[398449325,1765665043067,-500.0,0.00016066,2]
[398449326,1765665043077,-500.0,0.00016066,2]
[398449327,1765665043089,-319.05239199,0.000161,2]
[398449328,1765665043099,-500.0,0.00016203,2]
[398449329,1765665043108,-537.0,0.00016203,2]
[398449330,1765665043118,-500.0,0.00016203,2]
[398449331,1765665043128,-467.0,0.00016203,2]
[398449332,1765665043137,-515.0,0.00016203,2]
[398449333,1765665043147,-500.0,0.00016203,2]
[398449334,1765665043156,-500.0,0.00016203,2]
[398449335,1765665043166,-574.39153428,0.00016203,2]
[398449336,1765665043176,-500.0,0.0001634,2]
[398449337,1765665043186,-537.0,0.0001634,2]
[398449338,1765665043196,-500.0,0.0001634,2]
[398449339,1765665043206,-467.0,0.0001634,2]
[398449340,1765665043216,-515.0,0.0001634,2]
[398449341,1765665043225,-500.0,0.0001634,2]
[398449342,1765665043235,-628.63983745,0.0001634,2]
[398449343,1765665043244,-500.0,0.0001634,2]
[398449344,1765665043254,-284.5248896,0.00016345,2]
[398449345,1765665043264,-274.72139346,0.00016383,2]
[398449346,1765665043273,-257.29090219,0.00016383,2]
[398449347,1765665043282,-165.191317,0.00016438,2]
[398449348,1765665043292,-319.05239199,0.00016447,2]
[398449349,1765665043302,-204.0,0.00016449,2]
[398449350,1765665043312,-341.75677555,0.00016476,2]
[398449351,1765665043322,-500.0,0.00016477,2]
[398449352,1765665043331,-537.0,0.00016477,2]
[398449353,1765665043340,-500.0,0.00016477,2]
[398449354,1765665043350,-467.0,0.00016477,2]
[398449355,1765665043359,-515.0,0.00016477,2]
[398449356,1765665043369,-500.0,0.00016477,2]
[398449357,1765665043379,-356.99809918,0.00016509,2]
[398449358,1765665043388,-278.84867264,0.00016532,2]
[398449359,1765665043398,-1298.89116678,0.00016562,2]
[398449360,1765665043408,-6015.2071885,0.00016569,2]
[398449361,1765665043417,-663.93287602,0.00016583,2]
[398449362,1765665043425,-2214.34,0.00016604,3]
[398449363,1765665043434,-1107.18,0.00016604,3]
[398449364,1765665043443,-553.58,0.00016604,3]
[398449365,1765665043452,-504.9924861,0.00016614,2]
[398449366,1765665043463,-537.0,0.00016614,2]
[398449367,1765665043472,-500.0,0.00016614,2]
[398449368,1765665043482,-467.0,0.00016614,2]
[398449369,1765665043491,-515.0,0.00016614,2]
[398449370,1765665043500,-500.0,0.00016614,2]
[398449371,1765665043509,-500.0,0.00016614,2]
[398449372,1765665043519,-1298.89116678,0.00016655,2]
[398449373,1765665043528,-1830.44276542,0.00016664,2]
[398449374,1765665043537,-1298.89116678,0.00016749,2]
[398449375,1765665043547,-512.14480128,0.00016749,2]
[398449376,1765665043555,-537.0,0.00016751,2]
[398449377,1765665043564,-500.0,0.00016751,2]
[398449378,1765665043573,-467.0,0.00016751,2]
[398449379,1765665043582,-515.0,0.00016751,2]
[398449380,1765665043591,-500.0,0.00016751,2]
[398449381,1765665043601,-437.04901133,0.0001678,2]
[398449382,1765665043610,-1298.89116678,0.00016842,2]
[398449383,1765665043620,-390.57917205,0.00016879,2]
[398449384,1765665043629,-537.0,0.00016888,2]
[398449385,1765665043639,-500.0,0.00016888,2]
[398449386,1765665043648,-467.0,0.00016888,2]
[398449387,1765665043657,-515.0,0.00016888,2]
[398449388,1765665043666,-500.0,0.00016888,2]
[398449389,1765665043675,-500.0,0.00016888,2]
[398449390,1765665043684,-896.31558217,0.00016889,2]
[398449391,1765665043693,-642.59657852,0.00016914,2]
[398449392,1765665043701,-278.84867264,0.00016934,2]
[398449393,1765665043710,-1298.89116678,0.00016935,2]
[398449394,1765665043720,-274.99611486,0.00017012,2]
[398449395,1765665043729,-257.54819309,0.00017012,2]
[398449396,1765665043738,-537.0,0.00017025,2]
[398449397,1765665043748,-500.0,0.00017025,2]
[398449398,1765665043756,-467.0,0.00017025,2]
[398449399,1765665043766,-515.0,0.00017025,2]
[398449400,1765665043775,-368.60523676,0.00017025,2]
[398449401,1765665043785,-1298.89116678,0.00017028,2]
[398449402,1765665043794,-1298.89116678,0.00017122,2]
[398449403,1765665043803,-688.49839244,0.00017131,2]
[398449404,1765665043812,-910.47964672,0.00017152,2]
[398449405,1765665043821,-587.0,0.00017155,2]
[398449406,1765665043830,-537.0,0.00017162,2]
[398449407,1765665043839,-500.0,0.00017162,2]
[398449408,1765665043849,-467.0,0.00017162,2]
[398449409,1765665043858,-515.0,0.00017162,2]
[398449410,1765665043867,-500.0,0.00017162,2]
[398449411,1765665043877,-167.4190557,0.0001717,2]
[398449412,1765665043886,-1342.1741433,0.00017205,2]
[398449413,1765665043896,-1298.89116678,0.00017215,2]
[398449414,1765665043905,-720.0,0.00017256,2]
[398449415,1765665043914,-537.0,0.00017299,2]
[398449416,1765665043924,-400.0,0.00017299,2]
[398449417,1765665043933,-467.0,0.00017299,2]
[398449418,1765665043942,-515.0,0.00017299,2]
[398449419,1765665043951,-1298.89116678,0.00017308,2]
[398449420,1765665043961,-1142.39391737,0.00017318,2]
[398449421,1765665043970,-279.12752132,0.00017336,2]
[398449422,1765665043979,-1300.19005794,0.00017401,2]
[398449423,1765665043987,-2351.0,0.00017424,2]
[398449424,1765665043997,-537.0,0.00017436,2]
[398449425,1765665044006,-467.0,0.00017436,2]
[398449426,1765665044018,-515.0,0.00017436,2]
[398449427,1765665044027,-500.0,0.00017436,2]
[398449428,1765665044036,-537.0,0.00017573,2]
[398449429,1765665044045,-467.0,0.00017573,2]
[398449430,1765665044054,-515.0,0.00017573,2]
[398449431,1765665044063,-383.38595017,0.00017679,2]
[398449432,1765665044072,-314.69470175,0.00017685,2]
[398449433,1765665044082,-537.0,0.0001771,2]
[398449434,1765665044091,-467.0,0.0001771,2]
[398449435,1765665044100,-515.0,0.0001771,2]
[398449436,1765665044109,-500.0,0.0001771,2]
[398449437,1765665044118,-175.76776121,0.00017764,7]
[398449438,1765665044127,-537.0,0.00017847,2]
[398449439,1765665044136,-467.0,0.00017847,2]
[398449440,1765665044145,-515.0,0.00017847,2]
[398449441,1765665044154,-537.0,0.00017984,2]
[398449442,1765665044164,-467.0,0.00017984,2]
[398449443,1765665044175,-515.0,0.00017984,2]
[398449444,1765665044185,-1000.0,0.00018,2]
[398449445,1765665044198,-397.8515273,0.00018082,2]
[398449446,1765665044207,-397.8515273,0.00018082,2]
[398449447,1765665044217,-397.8515273,0.00018082,2]
[398449448,1765665044232,-397.8515273,0.00018082,2]
[398449449,1765665044241,-384.0892603,0.00018082,2]
[398449450,1765665044252,-1038.01133895,0.000181,2]
[398449451,1765665044261,-549.0,0.00018121,2]
[398449452,1765665044270,-479.0,0.00018121,2]
[398449453,1765665044279,-519.0,0.00018121,2]
[398449454,1765665044288,-1038.01133895,0.00018405,5]
[398449455,1765665044298,-175.76776121,0.00018639,8]
[398449456,1765665044307,-1038.01133895,0.00018711,9]
[398449457,1765665044317,-823.0,0.00018788,2]
[398449458,1765665044326,-864.0,0.00018982,10]
[398449459,1765665044336,-200.0,0.00018999,2]
[398449460,1765665044346,-200.0,0.00018999,2]
[398449461,1765665044355,-179.36701377,0.00019,2]
[398449462,1765665044364,-155.23963325,0.00019,2]
[398449463,1765665044374,-159.98604416,0.00019,2]
[398449464,1765665044384,-562978.86720551,0.00019,2]
[398449465,1765665044394,-1038.01133895,0.00019,2]
[398449466,1765665044404,-173.00188981,0.00019,2]
[398449467,1765665044413,-333.33333333,0.00019,2]
[398449468,1765665044423,-1038.01133895,0.00019016,13]
[398449469,1765665044432,-167.4190557,0.00019018,2]
[398449470,1765665044441,-1038.01133895,0.00019274,5]
[398449471,1765665044450,-166.76,0.000193,2]
[398449472,1765665044459,-159.22,0.00019316,2]
[398449473,1765665044468,-1038.01133895,0.00019321,16]
[398449474,1765665044478,-168.07,0.00019383,2]
[398449475,1765665044488,-965.72,0.000194,2]
[398449476,1765665044497,-9246.37,0.000194,2]
[398449477,1765665044506,-168.07,0.00019506,2]
[398449478,1765665044516,-175.76776121,0.00019513,10]
[398449479,1765665044525,-168.07,0.00019516,2]
[398449480,1765665044534,-333.33333333,0.00019542,9]
[398449481,1765665044543,-1038.01133895,0.00019548,9]
[398449482,1765665044553,-1038.01133895,0.00019626,20]
[398449483,1765665044562,-4483.0,0.00019671,2]
[398449484,1765665044571,-356.3454711,0.00019685,2]
[398449485,1765665044580,-1038.01133895,0.00019823,13]
[398449486,1765665044590,-1038.01133895,0.00019932,24]
[398449487,1765665044600,-6009.60098321,0.0002,20]
[398449488,1765665044609,-2000.0,0.0002,7]
[398449489,1765665044617,-1038.01133895,0.00020097,16]
[398449490,1765665044627,-155.23963325,0.00020162,17]
[398449491,1765665044636,-159.98604416,0.00020162,17]
[398449492,1765665044646,-179.36701377,0.00020162,17]
[398449493,1765665044655,-201.603727,0.00020187,2]
[398449494,1765665044664,-632.0,0.00020197,2]
[398449495,1765665044673,-1360.0,0.00020197,2]
[398449496,1765665044682,-2156.0,0.00020197,2]
[398449497,1765665044691,-415.0,0.00020197,2]
[398449498,1765665044700,-1038.01133895,0.00020237,28]
[398449499,1765665044709,-1038.01133895,0.00020371,20]
[398449500,1765665044718,-175.76776121,0.00020388,11]
[398449501,1765665044727,-2000.0,0.000205,7]
[398449502,1765665044736,-173.00188981,0.00020518,23]
[398449503,1765665044746,-1038.01133895,0.00020542,31]
[398449504,1765665044755,-389.3341573,0.00020548,2]
[398449505,1765665044764,-192.5373363,0.00020548,2]
[398449506,1765665044773,-192.5373363,0.00020548,2]
[398449507,1765665044781,-187.9941225,0.00020548,2]
[398449508,1765665044791,-1152.0,0.00020577,2]
[398449509,1765665044799,-1038.01133895,0.00020645,24]
[398449510,1765665044808,-150.0,0.00020659,2]
[398449511,1765665044818,-150.0,0.00020659,2]
[398449512,1765665044827,-150.0,0.00020659,2]
[398449513,1765665044836,-7453.62816438,0.00020756,2]
[398449514,1765665044845,-1038.01133895,0.00020847,35]
[398449515,1765665044854,-167.4190557,0.00020866,2]
[398449516,1765665044863,-184.6118033,0.00020866,2]
[398449517,1765665044872,-1000.0,0.0002088,10]
[398449518,1765665044881,-1038.01133895,0.0002092,28]
[398449519,1765665044890,-2000.0,0.00021,7]
[398449520,1765665044899,-1038.01133895,0.00021153,39]
[398449521,1765665044908,-1038.01133895,0.00021194,31]
[398449522,1765665044918,-175.76776121,0.00021263,13]
[398449523,1765665044927,-179.36701377,0.00021324,32]
[398449524,1765665044936,-159.98604416,0.00021324,32]
[398449525,1765665044944,-155.23963325,0.00021324,32]
[398449526,1765665044953,-1038.01133895,0.00021458,42]
[398449527,1765665044962,-1038.01133895,0.00021468,35]
[398449528,1765665044971,-2000.0,0.000215,7]
[398449529,1765665044980,-397.99624045,0.00021685,2]
[398449530,1765665044989,-150.0,0.000217,2]
[398449531,1765665044998,-281.0,0.000217,2]
[398449532,1765665045009,-1038.01133895,0.00021742,39]
[398449533,1765665045019,-1038.01133895,0.00021763,46]
[398449534,1765665045028,-3000.0,0.000219,2]
[398449535,1765665045037,-285.0,0.000219,2]
[398449536,1765665045046,-250.0,0.000219,10]
[398449537,1765665045057,-3000.0,0.0002191,2]
[398449538,1765665045066,-221.96040356,0.00021916,2]
[398449539,1765665045075,-1000.0,0.00021917,2]
[398449540,1765665045086,-1000.0,0.00021917,2]
[398449541,1765665045097,-269.59321439,0.00021917,2]
[398449542,1765665045169,-500.0,0.00021917,2]
[398449543,1765665045178,-500.0,0.00021917,2]
[398449544,1765665045187,-500.0,0.00021917,2]
[398449545,1765665045197,-500.0,0.00021917,2]
[398449546,1765665045206,-500.0,0.00021917,2]
[398449547,1765665045215,-500.0,0.00021917,2]
[398449548,1765665045224,-500.0,0.00021917,2]
[398449549,1765665045234,-500.0,0.00021917,2]
[398449550,1765665045244,-521.5360652,0.00021917,2]
[398449551,1765665045253,-500.0,0.00021917,2]
[398449552,1765665045262,-500.0,0.00021917,2]
[398449553,1765665045271,-500.0,0.00021917,2]
[398449554,1765665045280,-500.0,0.00021917,2]
[398449555,1765665045290,-1345.04,0.00021917,2]
[398449556,1765665045299,-874.22,0.00021917,2]
[398449557,1765665045308,-583.56184371,0.00021917,2]
[398449558,1765665045317,-500.0,0.00021917,2]
[398449559,1765665045326,-552.46,0.00021917,2]
[398449560,1765665045335,-500.0,0.00021917,2]
[398449561,1765665045344,-500.0,0.00021917,2]
[398449562,1765665045354,-500.0,0.00021917,2]
[398449563,1765665045363,-500.0,0.00021917,2]
[398449564,1765665045373,-500.0,0.00021917,2]
[398449565,1765665045382,-202.60292446,0.00021917,2]
[398449566,1765665045391,-500.0,0.00021917,2]
[398449567,1765665045400,-500.0,0.00021917,2]
[398449568,1765665045410,-500.0,0.00021917,2]
[398449569,1765665045419,-500.0,0.00021917,2]
[398449570,1765665045427,-719.4,0.00021917,2]
[398449571,1765665045437,-500.0,0.00021917,2]
[398449572,1765665045446,-500.0,0.00021917,2]
[398449573,1765665045455,-500.0,0.00021917,2]
[398449574,1765665045464,-500.0,0.00021917,2]
[398449575,1765665045473,-500.0,0.00021917,2]
[398449576,1765665045482,-500.0,0.00021917,2]
[398449577,1765665045491,-500.0,0.00021917,2]
[398449578,1765665045500,-500.0,0.00021917,2]
[398449579,1765665045509,-508.85881132,0.00021917,2]
[398449580,1765665045518,-390.87460629,0.00021917,2]
[398449581,1765665045527,-500.0,0.00021917,2]
[398449582,1765665045535,-500.0,0.00021917,2]
[398449583,1765665045544,-500.0,0.00021917,2]
[398449584,1765665045554,-1117.1,0.00021917,2]
[398449585,1765665045563,-500.0,0.00021917,2]
[398449586,1765665045572,-500.0,0.00021917,2]
[398449587,1765665045581,-500.0,0.00021917,2]
[398449588,1765665045591,-500.0,0.00021917,2]
[398449589,1765665045601,-513.69512055,0.00021917,2]
[398449590,1765665045611,-500.0,0.00021917,2]
[398449591,1765665045620,-500.0,0.00021917,2]
[398449592,1765665045629,-500.0,0.00021917,2]
[398449593,1765665045638,-1449.4,0.00021917,2]
[398449594,1765665045647,-500.0,0.00021917,2]
[398449595,1765665045656,-500.0,0.00021917,2]
[398449596,1765665045665,-500.0,0.00021917,2]
[398449597,1765665045674,-1465.35,0.00021917,2]
[398449598,1765665045683,-500.0,0.00021917,2]
[398449599,1765665045692,-500.0,0.00021917,2]
[398449600,1765665045703,-500.69257826,0.00021917,2]
[398449601,1765665045712,-650.34,0.00021917,2]
[398449602,1765665045721,-500.0,0.00021917,2]
[398449603,1765665045730,-500.0,0.00021917,2]
[398449605,1765665045739,-500.0,0.00021917,2]
[398449607,1765665045748,-500.0,0.00021917,2]
[398449608,1765665045757,-597.04,0.00021917,2]
[398449609,1765665045766,-500.0,0.00021917,2]
[398449610,1765665045775,-500.0,0.00021917,2]
[398449611,1765665045783,-500.0,0.00021917,2]
[398449612,1765665045793,-1000.0,0.00021917,2]
[398449614,1765665045802,-500.0,0.00021917,2]
[398449615,1765665045811,-500.0,0.00021917,2]
[398449616,1765665045820,-500.0,0.00021917,2]
[398449617,1765665045829,-500.0,0.00021917,2]
[398449618,1765665045838,-500.0,0.00021917,2]
[398449619,1765665045847,-500.0,0.00021917,2]
[398449620,1765665045857,-500.0,0.00021917,2]
[398449621,1765665045865,-500.0,0.00021917,2]
[398449622,1765665045875,-500.0,0.00021917,2]
[398449623,1765665045884,-500.0,0.00021917,2]
[398449624,1765665045893,-633.35,0.00021917,2]
[398449625,1765665045902,-500.0,0.00021917,2]
[398449626,1765665045910,-500.0,0.00021917,2]
[398449627,1765665045919,-500.0,0.00021917,2]
[398449628,1765665045928,-500.0,0.00021917,2]
[398449629,1765665045937,-500.0,0.00021917,2]
[398449630,1765665045946,-500.0,0.00021917,2]
[398449631,1765665045955,-500.0,0.00021917,2]
[398449632,1765665045963,-500.0,0.00021917,2]
[398449633,1765665045972,-534.09972711,0.00021917,2]
[398449634,1765665045981,-730.91,0.00021917,2]
[398449635,1765665045990,-500.0,0.00021917,2]
[398449636,1765665045999,-1637.87,0.00021917,2]
[398449637,1765665046009,-500.0,0.00021917,2]
[398449638,1765665046019,-500.0,0.00021917,2]
[398449639,1765665046028,-500.62912529,0.00021917,2]
[398449640,1765665046037,-500.0,0.00021917,2]
[398449641,1765665046046,-500.0,0.00021917,2]
[398449642,1765665046054,-500.0,0.00021917,2]
[398449643,1765665046063,-500.0,0.00021917,2]
[398449644,1765665046072,-500.0,0.00021917,2]
[398449645,1765665046081,-500.0,0.00021917,2]
[398449646,1765665046090,-500.0,0.00021917,2]
[398449647,1765665046099,-262.00177027,0.00021917,2]
[398449648,1765665046108,-500.0,0.00021917,2]
[398449649,1765665046116,-500.0,0.00021917,2]
[398449650,1765665046125,-500.0,0.00021917,2]
[398449651,1765665046134,-500.0,0.00021917,2]
[398449652,1765665046143,-557.59160899,0.00021917,2]
[398449653,1765665046151,-500.0,0.00021917,2]
[398449654,1765665046160,-500.0,0.00021917,2]
[398449655,1765665046169,-500.0,0.00021917,2]
[398449656,1765665046178,-500.0,0.00021917,2]
[398449657,1765665046187,-500.0,0.00021917,2]
[398449658,1765665046197,-500.0,0.00021917,2]
[398449659,1765665046206,-500.0,0.00021917,2]
[398449660,1765665046215,-526.15082164,0.00021917,2]
[398449661,1765665046224,-500.0,0.00021917,2]
[398449662,1765665046233,-1124.07,0.00021917,2]
[398449663,1765665046242,-576.14,0.00021917,2]
[398449664,1765665046251,-500.0,0.00021917,2]
[398449665,1765665046260,-500.0,0.00021917,2]
[398449666,1765665046270,-667.01,0.00021917,2]
[398449667,1765665046278,-500.0,0.00021917,2]
[398449668,1765665046288,-842.72,0.00021917,2]
[398449669,1765665046296,-500.0,0.00021917,2]
[398449670,1765665046305,-500.0,0.00021917,2]
[398449671,1765665046313,-500.0,0.00021917,2]
[398449672,1765665046321,-500.0,0.00021917,2]
[398449673,1765665046331,-592.18,0.00021917,2]
[398449674,1765665046340,-500.0,0.00021917,2]
[398449675,1765665046349,-733.62,0.00021917,2]
[398449676,1765665046358,-500.0,0.00021917,2]
[398449677,1765665046367,-500.0,0.00021917,2]
[398449678,1765665046377,-500.0,0.00021917,2]
[398449679,1765665046386,-500.0,0.00021917,2]
[398449680,1765665046395,-500.0,0.00021917,2]
[398449681,1765665046404,-625.47900941,0.00021917,2]
[398449682,1765665046413,-500.0,0.00021917,2]
[398449683,1765665046422,-557.55,0.00021917,2]
[398449684,1765665046431,-500.0,0.00021917,2]
[398449685,1765665046440,-500.0,0.00021917,2]
[398449686,1765665046452,-500.0,0.00021917,2]
[398449687,1765665046462,-500.0,0.00021917,2]
[398449688,1765665046471,-500.0,0.00021917,2]
[398449689,1765665046480,-500.0,0.00021917,2]
[398449690,1765665046489,-500.0,0.00021917,2]
[398449691,1765665046498,-500.16699667,0.00021917,2]
[398449692,1765665046507,-500.0,0.00021917,2]
[398449693,1765665046516,-500.0,0.00021917,2]
[398449694,1765665046525,-500.0,0.00021917,2]
[398449695,1765665046534,-500.0,0.00021917,2]
[398449696,1765665046544,-500.0,0.00021917,2]
[398449697,1765665046553,-500.0,0.00021917,2]
[398449698,1765665046563,-1205.57,0.00021917,2]
[398449699,1765665046572,-462.05690775,0.00021917,2]
[398449700,1765665046581,-500.0,0.00021917,2]
[398449701,1765665046590,-500.0,0.00021917,2]
[398449702,1765665046599,-500.0,0.00021917,2]
[398449703,1765665046608,-270.6143555,0.00021917,2]
[398449704,1765665046618,-500.0,0.00021917,2]
[398449705,1765665046627,-500.0,0.00021917,2]
[398449706,1765665046636,-967.65,0.00021917,2]
[398449707,1765665046645,-1315.13,0.00021917,2]
[398449708,1765665046655,-708.98,0.00021917,2]
[398449709,1765665046664,-500.0,0.00021917,2]
[398449710,1765665046673,-501.21494137,0.00021917,2]
[398449711,1765665046682,-500.0,0.00021917,2]
[398449712,1765665046692,-501.05986414,0.00021917,2]
[398449713,1765665046701,-500.0,0.00021917,2]
[398449714,1765665046710,-500.0,0.00021917,2]
[398449715,1765665046720,-506.60077854,0.00021917,2]
[398449716,1765665046729,-500.0,0.00021917,2]
[398449717,1765665046738,-500.0,0.00021917,2]
[398449718,1765665046748,-1720.24,0.00021917,2]
[398449719,1765665046757,-500.0,0.00021917,2]
[398449720,1765665046766,-500.0,0.00021917,2]
[398449721,1765665046776,-500.0,0.00021917,2]
[398449722,1765665046785,-500.0,0.00021917,2]
[398449723,1765665046794,-500.0,0.00021917,2]
[398449724,1765665046803,-265.24048396,0.00021917,2]
[398449725,1765665046812,-500.0,0.00021917,2]
[398449726,1765665046821,-500.0,0.00021917,2]
[398449727,1765665046831,-500.0,0.00021917,2]
[398449728,1765665046840,-170.14,0.00021917,2]
[398449729,1765665046849,-1002.45,0.00021917,2]
[398449730,1765665046858,-588.06,0.00021917,2]
[398449731,1765665046867,-501.74803624,0.00021917,2]
[398449732,1765665046877,-500.0,0.00021917,2]
[398449733,1765665046885,-500.36897405,0.00021917,2]
[398449734,1765665046894,-500.0,0.00021917,2]
[398449735,1765665046903,-500.0,0.00021917,2]
[398449736,1765665046912,-500.0,0.00021917,2]
[398449737,1765665046922,-500.0,0.00021917,2]
[398449738,1765665046931,-564.35,0.00021917,2]
[398449739,1765665046940,-981.07,0.00021917,2]
[398449740,1765665046949,-500.0,0.00021917,2]
[398449741,1765665046959,-500.0,0.00021917,2]
[398449742,1765665046968,-500.0,0.00021917,2]
[398449743,1765665046977,-504.37641461,0.00021917,2]
[398449744,1765665046986,-500.0,0.00021917,2]
[398449745,1765665046995,-500.0,0.00021917,2]
[398449746,1765665047004,-500.0,0.00021917,2]
[398449747,1765665047017,-500.0,0.00021917,2]
[398449748,1765665047026,-500.0,0.00021917,2]
[398449749,1765665047036,-500.0,0.00021917,2]
[398449750,1765665047045,-761.05,0.00021917,2]
[398449751,1765665047054,-912.1,0.00021917,2]
[398449752,1765665047065,-500.0,0.00021917,2]
[398449753,1765665047075,-500.30461858,0.00021917,2]
[398449754,1765665047084,-500.0,0.00021917,2]
[398449755,1765665047094,-500.0,0.00021917,2]
[398449756,1765665047103,-813.89,0.00021917,2]
[398449757,1765665047112,-1800.2,0.00021917,2]
[398449758,1765665047121,-2309.71,0.00021917,2]
[398449759,1765665047130,-500.0,0.00021917,2]
[398449760,1765665047139,-500.0,0.00021917,2]
[398449761,1765665047149,-500.0,0.00021917,2]
[398449762,1765665047158,-500.0,0.00021917,2]
[398449763,1765665047167,-500.0,0.00021917,2]
[398449764,1765665047177,-500.0,0.00021917,2]
[398449765,1765665047186,-1353.06,0.00021917,2]
[398449766,1765665047196,-840.64,0.00021917,2]
[398449767,1765665047205,-661.19,0.00021917,2]
[398449768,1765665047215,-500.0,0.00021917,2]
[398449769,1765665047224,-500.0,0.00021917,2]
[398449770,1765665047233,-500.0,0.00021917,2]
[398449771,1765665047243,-500.43394647,0.00021917,2]
[398449772,1765665047252,-500.0,0.00021917,2]
[398449773,1765665047262,-500.0,0.00021917,2]
[398449774,1765665047272,-522.01,0.00021917,2]
[398449775,1765665047282,-500.0,0.00021917,2]
[398449776,1765665047291,-500.0,0.00021917,2]
[398449777,1765665047300,-500.0,0.00021917,2]
[398449778,1765665047310,-500.0,0.00021917,2]
[398449779,1765665047319,-500.0,0.00021917,2]
[398449780,1765665047329,-500.0,0.00021917,2]
[398449781,1765665047338,-659.84,0.00021917,2]
[398449782,1765665047347,-442.76013965,0.00021917,2]
[398449783,1765665047356,-852.58,0.00021917,2]
[398449784,1765665047366,-558.53,0.00021917,2]
[398449785,1765665047375,-500.0,0.00021917,2]
[398449786,1765665047384,-500.0,0.00021917,2]
[398449787,1765665047394,-500.0,0.00021917,2]
[398449788,1765665047403,-500.0,0.00021917,2]
[398449789,1765665047412,-500.0,0.00021917,2]
[398449790,1765665047422,-745.41,0.00021917,2]
[398449791,1765665047432,-500.0,0.00021917,2]
[398449792,1765665047441,-500.0,0.00021917,2]
[398449793,1765665047449,-500.0,0.00021917,2]